bitfinex/quotes_SOLUSD_20251204
["timestamp","ask_amount","ask_price","bid_price","bid_amount"]
[1764818054949,7.58339455,145.28,145.21,7.6]
[1764818054950,3.98489652,145.25,145.21,7.6]
[1764818055167,24.79154432,145.28,145.21,7.6]
[1764818055168,3.98489652,145.24,145.21,7.6]
[1764818055681,24.09154432,145.28,145.23,3.98489652]
[1764818055682,7.58339455,145.28,145.23,3.98489652]
[1764818055859,7.58339455,145.28,145.25,3.98489652]
[1764818056059,0.7,145.3,145.26,3.98489652]
[1764818056259,0.7,145.29,145.27,3.98489652]
[1764818056850,7.58292752,145.29,145.26,3.98489652]
[1764818057054,7.58292752,145.29,145.25,11.58489652]
[1764818057249,0.7,145.28,145.25,11.58489652]
[1764818057749,0.7,145.28,145.25,7.6]
[1764818058249,0.7,145.28,145.24,11.58489652]
[1764818058677,11.56848318,145.28,145.24,7.6]
[1764818058876,3.98489652,145.27,145.24,7.6]
[1764818059058,0.7,145.27,145.24,7.6]
[1764818059269,4.68489652,145.26,145.24,7.6]
[1764818059856,7.58468158,145.25,145.24,7.6]
[1764818060076,3.98489652,145.27,145.24,7.6]
[1764818060286,3.98489652,145.28,145.24,7.6]
[1764818060669,0.7,145.27,145.24,7.6]
[1764818063091,7.58380736,145.27,145.24,7.6]
[1764818063674,6.88380736,145.27,145.24,7.6]
[1764818063886,7.58424971,145.26,145.24,7.6]
[1764818064284,0.7,145.25,145.24,7.6]
[1764818065985,6.88424971,145.26,145.24,7.6]
[1764818066295,0.7,145.25,145.24,7.6]
[1764818067002,0.7,145.25,145.21,3.98489652]
[1764818067201,4.68489652,145.25,145.2,7.6]
[1764818067402,4.68489652,145.24,145.2,7.6]
[1764818067884,0.7,145.23,145.2,7.6]
[1764818068269,6.88610384,145.22,145.2,7.6]
[1764818068674,0.7,145.21,145.2,7.6]
[1764818069105,7.5857604,145.23,145.2,7.6]
[1764818069404,0.7,145.24,145.21,3.98489652]
[1764818070397,0.7,145.24,145.2,19.01194393]
[1764818071807,7.58517745,145.24,145.2,19.01194393]
[1764818072610,7.58517745,145.24,145.2,15.02704741]
[1764818072780,7.58517745,145.24,145.2,19.01194393]
[1764818073284,7.58517745,145.24,145.2,15.02704741]
[1764818075902,0.7,145.24,145.2,19.01194393]
[1764818077487,7.6,145.27,145.22,3.98489652]
[1764818077488,4.68489652,145.27,145.22,3.98489652]
[1764818077690,11.56877585,145.27,145.23,7.6]
[1764818077896,0.7,145.26,145.23,7.6]
[1764818078601,6.88362786,145.28,145.23,14.48519396]
[1764818078907,0.7,145.27,145.23,18.47009048]
[1764818079109,0.7,145.27,145.23,14.48519396]
[1764818080010,7.58374129,145.27,145.23,14.48519396]
[1764818080694,0.67,145.26,145.23,14.48519396]
[1764818082294,0.67,145.27,145.23,19.01009048]
[1764818083898,7.55377713,145.27,145.23,18.47009048]
[1764818084295,0.7,145.26,145.23,18.47009048]
[1764818085514,0.7,145.26,145.23,14.48519396]
[1764818086243,7.58424713,145.26,145.23,7.6]
[1764818086719,0.7,145.25,145.23,7.6]
[1764818088702,0.7,145.25,145.23,11.58489652]
[1764818088904,7.58384856,145.27,145.23,18.47052337]
[1764818089096,0.7,145.26,145.23,19.01052337]
[1764818090125,7.58325991,145.28,145.23,19.01052337]
[1764818090506,7.58325991,145.28,145.24,2.54794136]
[1764818090709,36.06468497,145.29,145.26,2.54794136]
[1764818090710,6.88283937,145.29,145.26,2.54794136]
[1764818090907,7.58283937,145.29,145.27,7.6]
[1764818092926,58.31553885,145.33,145.18,7.44211106]
[1764818092927,16.308864,145.27,145.18,7.44211106]
[1764818093124,2.54794136,145.23,145.18,9.97550985]
[1764818093313,7.6,145.26,145.19,2.54794136]
[1764818093314,2.54794136,145.24,145.19,2.54794136]
[1764818093820,0.7,145.23,145.19,2.54794136]
[1764818094219,6.88610384,145.22,145.18,9.43550985]
[1764818094606,7.58610384,145.22,145.18,9.97550985]
[1764818095329,0.7,145.21,145.18,2.54794136]
[1764818095903,0.7,145.21,145.18,9.43594219]
[1764818096105,7.58610384,145.22,145.18,7.42800083]
[1764818096305,6.88572228,145.23,145.19,3.08794136]
[1764818096622,7.58572228,145.23,145.2,7.6]
[1764818096810,6.88518974,145.24,145.21,2.54794136]
[1764818097007,7.58518974,145.24,145.21,2.54794136]
[1764818098040,7.58518974,145.24,145.2,17.57499167]
[1764818100430,0.7,145.25,145.22,2.54794136]
[1764818100621,0.7,145.27,145.23,2.54794136]
[1764818100830,0.7,145.26,145.23,10.14794136]
[1764818101824,0.7,145.26,145.23,10.68794136]
[1764818102026,6.88380207,145.27,145.23,17.57355142]
[1764818102243,7.58380207,145.27,145.23,17.57355142]
[1764818102545,18.85680536,145.24,145.16,7.98211106]
[1764818102744,2.54794136,145.22,145.17,7.6]
[1764818103046,3.24794136,145.23,145.17,10.68794136]
[1764818103355,0.7,145.23,145.18,2.54794136]
[1764818103646,0.7,145.22,145.18,2.54794136]
[1764818104020,10.13444805,145.22,145.17,7.6]
[1764818104544,0.7,145.21,145.17,7.6]
[1764818104746,3.24794136,145.21,145.17,7.6]
[1764818105124,0.7,145.2,145.17,7.6]
[1764818105942,6.88752668,145.19,145.17,7.6]
[1764818106145,9.43546804,145.19,145.17,7.6]
[1764818106351,3.24794136,145.18,145.15,0.1]
[1764818106731,0.7,145.17,145.15,0.1]
[1764818107057,3.24794136,145.17,145.15,0.1]
[1764818107358,0.7,145.17,145.15,0.1]
[1764818107523,2.54794136,145.18,145.15,0.1]
[1764818107524,0.7,145.16,145.15,0.1]
[1764818107724,2.54794136,145.18,145.15,0.1]
[1764818107725,0.7,145.18,145.15,0.1]
[1764818107926,7.58752668,145.19,145.15,2.64794136]
[1764818108355,0.7,145.19,145.16,10.14794136]
[1764818108550,0.7,145.19,145.16,7.6]
[1764818108786,0.7,145.2,145.16,10.14794136]
[1764818109352,0.7,145.2,145.16,10.68794136]
[1764818109548,0.7,145.2,145.16,10.14794136]
[1764818109751,0.7,145.2,145.16,17.03679855]
[1764818110231,10.13508251,145.2,145.16,7.6]
[1764818110430,0.7,145.19,145.16,7.6]
[1764818111058,3.24794136,145.19,145.16,7.6]
[1764818111428,6.88714115,145.2,145.16,7.6]
[1764818111429,0.7,145.18,145.16,7.6]
[1764818112451,7.58803818,145.18,145.16,7.6]
[1764818112841,0.66,145.17,145.15,0.1]
[1764818113833,6.88895012,145.16,145.11,19.89680522]
[1764818114038,2.54794136,145.14,145.1,7.6]
[1764818114346,0.66,145.13,145.1,7.6]
[1764818114663,3.20794136,145.13,145.09,0.1]
[1764818114844,2.54794136,145.12,145.09,0.1]
[1764818115043,3.20794136,145.12,145.09,0.1]
[1764818115245,0.66,145.11,145.09,0.1]
[1764818118641,6.89087869,145.12,145.09,0.1]
[1764818118948,17.88464581,145.15,145.1,10.78794136]
[1764818119144,0.66,145.14,145.1,10.78794136]
[1764818119558,0.66,145.14,145.1,10.14794136]
[1764818119748,7.54998121,145.14,145.1,10.14794136]
[1764818119952,2.54794136,145.12,145.1,7.6]
[1764818120149,2.54794136,145.12,145.09,0.1]
[1764818120356,6.89084895,145.12,145.09,0.1]
[1764818120554,0.66,145.11,145.09,0.1]
[1764818121849,16.308864,145.08,145.06,0.1]
[1764818122054,2.54794136,145.07,145.06,0.1]
[1764818122257,2.54794136,145.07,145.01,0.1]
[1764818122258,0.66,145.07,145.01,0.1]
[1764818122466,25.75158775,145.04,145.01,0.1]
[1764818122654,23.20364639,145.04,145.01,0.1]
[1764818122971,0.66,145.04,145.02,2.54794136]
[1764818123158,16.968864,145.09,145.03,2.54794136]
[1764818123355,19.51680536,145.09,145.04,2.54794136]
[1764818123745,0.66,145.08,145.04,2.54794136]
[1764818123951,0.66,145.08,145.05,2.54794136]
[1764818124174,25.77880892,145.07,145.01,0.1]
[1764818124381,16.308864,145.05,145.01,0.1]
[1764818124583,2.54794136,145.04,145.01,0.1]
[1764818124885,2.54794136,145.03,145.01,0.1]
[1764818125081,3.20794136,145.03,145.01,0.1]
[1764818125383,3.20794136,145.02,145.01,0.1]
[1764818125574,19.51680536,145.02,145.01,0.1]
[1764818126370,14.40548518,145.02,145.01,0.1]
[1764818127874,6.84988458,145.03,145.01,0.1]
[1764818128078,7.50988458,145.03,145.01,0.1]
[1764818128678,0.66,145.02,145.01,0.1]
[1764818129478,7.5556006,145.02,145.01,0.1]
[1764818129858,7.50988458,145.04,145.01,0.1]
[1764818130064,23.15874858,145.05,145.01,0.1]
[1764818130264,23.81874858,145.05,145.01,0.78]
[1764818130985,7.50988458,145.04,145.01,0.1]
[1764818131695,14.40473503,145.04,145.01,0.1]
[1764818132181,0.66,145.03,145.01,0.1]
[1764818132355,7.50988458,145.03,145.01,0.1]
[1764818133004,7.50988458,145.02,145.01,0.1]
[1764818133494,14.40509034,145.03,145.01,0.1]
[1764818134385,6.84988458,145.06,145.02,0.68]
[1764818134563,7.50988458,145.06,145.02,0.68]
[1764818134764,0.66,145.06,145.02,0.68]
[1764818135381,7.50988458,145.06,145.02,0.68]
[1764818135570,6.89417442,145.05,145.01,6.94988458]
[1764818135769,6.89417442,145.05,145.01,7.62988458]
[1764818135970,7.55417442,145.05,145.01,7.62988458]
[1764818136283,7.55417442,145.05,145.01,0.78]
[1764818136787,24.78628386,145.07,145.02,0.68]
[1764818137006,6.84988458,145.06,145.01,14.52593776]
[1764818137300,7.50988458,145.06,145.01,14.52593776]
[1764818137479,0.66,145.05,145.01,14.52593776]
[1764818138195,7.55429897,145.05,145.01,14.52593776]
[1764818138818,0.66,145.04,145.01,0.1]
[1764818139002,7.55429897,145.05,145.01,7.67594867]
[1764818139306,0.66,145.05,145.01,7.67594867]
[1764818141479,14.40414163,145.05,145.01,0.1]
[1764818141793,7.55425705,145.05,145.01,7.67601692]
[1764818143494,7.55425705,145.05,145.01,0.78]
[1764818143805,7.55988458,145.04,145.01,0.1]
[1764818144178,0.71,145.03,145.01,0.1]
[1764818144477,7.55988458,145.03,145.01,0.1]
[1764818144890,0.67,145.02,145.01,0.1]
[1764818145305,7.51988458,145.02,145.01,0.1]
[1764818145490,14.41548518,145.02,145.01,0.1]
[1764818146087,13.74453433,145.04,145.01,0.1]
[1764818146295,0.67,145.02,145.01,0.1]
[1764818147001,6.84988458,145.03,145.01,0.1]
[1764818147206,0.67,145.03,145.01,0.1]
[1764818147405,0.67,145.02,145.01,0.1]
[1764818147782,7.5656006,145.02,145.01,0.1]
[1764818147979,14.41548518,145.02,145.01,0.1]
[1764818148404,10.12289962,145.02,145.01,0.1]
[1764818150281,17.23759724,145.04,145.01,0.1]
[1764818150282,9.45249726,145.03,145.01,0.1]
[1764818150477,11.56041387,145.03,145.01,0.1]
[1764818150715,10.89041387,145.03,145.01,0.1]
[1764818150896,11.56041387,145.03,145.01,0.1]
[1764818152305,23.87318554,145.05,145.01,0.78]
[1764818152481,23.20318554,145.05,145.01,0.78]
[1764818152685,23.87318554,145.05,145.01,0.78]
[1764818152910,27.86840117,145.05,145.01,0.78]
[1764818154512,0.67,145.04,145.01,0.1]
[1764818155017,0.67,145.04,145.01,0.78]
[1764818155214,27.19840117,145.05,145.01,0.78]
[1764818155417,27.86840117,145.05,145.01,0.78]
[1764818155719,23.87318554,145.05,145.01,7.67603717]
[1764818156017,27.86840117,145.05,145.01,0.78]
[1764818156323,11.55953717,145.05,145.01,0.78]
[1764818156820,0.67,145.04,145.01,0.1]
[1764818158005,7.56473129,145.04,145.01,0.1]
[1764818158590,0.67,145.03,145.01,0.1]
[1764818158811,11.55994692,145.04,145.01,0.1]
[1764818159213,7.56473129,145.04,145.01,0.1]
[1764818159785,6.89473129,145.04,145.01,0.78]
[1764818160192,0.67,145.03,145.01,0.1]
[1764818160915,4.66521563,145.03,145.01,0.1]
[1764818161310,6.8956006,145.02,145.01,0.1]
[1764818161812,24.79840931,145.06,145.01,0.78]
[1764818162016,28.79362494,145.06,145.01,0.78]
[1764818162196,4.66521563,145.05,145.01,0.78]
[1764818162599,0.67,145.04,145.01,0.1]
[1764818163190,3.99521563,145.05,145.01,0.78]
[1764818163191,10.88958217,145.05,145.01,0.78]
[1764818163400,0.67,145.04,145.01,0.78]
[1764818164819,10.88958217,145.05,145.01,7.67602237]
[1764818165124,7.56436654,145.05,145.01,7.67602237]
[1764818165325,11.55958217,145.05,145.01,0.78]
[1764818165713,10.88958217,145.05,145.01,0.78]
[1764818165919,0.67,145.04,145.01,0.1]
[1764818167312,7.56465628,145.04,145.01,0.1]
[1764818168306,0.67,145.03,145.01,0.1]
[1764818168618,3.99521563,145.02,145.01,0.1]
[1764818168924,0.67,145.03,145.01,0.1]
[1764818169110,0.67,145.02,145.01,0.1]
[1764818169312,10.88987191,145.04,145.01,0.1]
[1764818169532,11.55987191,145.04,145.01,0.1]
[1764818169826,0.67,145.03,145.01,0.1]
[1764818170025,7.56465628,145.04,145.01,0.1]
[1764818170328,11.55987191,145.04,145.01,0.1]
[1764818172535,3.99521563,145.02,145.01,0.1]
[1764818172947,4.66521563,145.02,145.01,0.1]
[1764818174047,23.20352028,145.04,145.01,0.1]
[1764818174251,27.86873591,145.04,145.01,0.1]
[1764818174560,11.55987191,145.04,145.01,0.1]
[1764818175143,0.67,145.03,145.01,0.1]
[1764818175330,7.56514877,145.03,145.01,0.1]
[1764818175731,6.89514877,145.03,145.01,0.1]
[1764818177127,4.66521563,145.02,145.01,0.1]
[1764818177329,11.56081623,145.02,145.01,0.1]
[1764818178833,6.8956006,145.02,145.01,0.1]
[1764818179250,11.56081623,145.02,145.01,0.1]
[1764818179628,6.8956006,145.02,145.01,0.1]
[1764818179831,6.89311279,145.08,145.01,28.20555628]
[1764818180044,6.89230335,145.09,145.04,3.99521563]
[1764818180250,7.56133059,145.11,145.05,3.99521563]
[1764818180452,6.89133059,145.11,145.08,3.99521563]
[1764818180756,6.89091995,145.12,145.09,3.99521563]
[1764818181264,7.56091995,145.12,145.09,3.99521563]
[1764818182432,0.67,145.14,145.09,0.7]
[1764818182633,0.67,145.13,145.09,3.99521563]
[1764818183647,7.56057121,145.13,145.09,3.99521563]
[1764818184076,4.66521563,145.12,145.05,17.008864]
[1764818184234,4.66521563,145.12,145.06,3.99521563]
[1764818184436,0.67,145.11,145.06,3.99521563]
[1764818184831,0.67,145.11,145.07,3.99521563]
[1764818185752,7.56161658,145.11,145.07,3.99521563]
[1764818186536,7.56161658,145.11,145.06,11.58880724]
[1764818186738,0.67,145.1,145.06,11.58880724]
[1764818188757,0.67,145.1,145.07,3.99521563]
[1764818189457,7.56200235,145.1,145.06,11.58888873]
[1764818190161,3.99521563,145.08,145.04,7.64]
[1764818190630,0.67,145.07,145.04,7.64]
[1764818191035,7.5634098,145.07,145.04,7.64]
[1764818192052,24.84949689,145.1,145.04,11.63521563]
[1764818192053,4.66521563,145.09,145.04,11.63521563]
[1764818192251,4.66521563,145.11,145.06,3.99521563]
[1764818192554,0.67,145.11,145.07,3.99521563]
[1764818192861,7.56146776,145.11,145.08,3.99521563]
[1764818193359,7.56146776,145.11,145.07,4.69521563]
[1764818193555,7.56146776,145.11,145.08,0.7]
[1764818193756,7.56146776,145.11,145.07,3.99521563]
[1764818194163,17.22486469,145.14,145.1,3.99521563]
[1764818194343,6.8898994,145.14,145.1,3.99521563]
[1764818194544,0.67,145.13,145.1,3.99521563]
[1764818195262,0.67,145.13,145.09,3.99521563]
[1764818195465,0.67,145.13,145.09,4.69521563]
[1764818195669,0.67,145.13,145.1,3.99521563]
[1764818195841,6.8898994,145.14,145.1,4.69521563]
[1764818196269,7.5598994,145.14,145.1,4.69521563]
[1764818199871,15.17931306,145.16,145.12,3.99521563]
[1764818200343,0.67,145.15,145.12,3.99521563]
[1764818200947,7.55956622,145.15,145.12,3.99521563]
[1764818201869,7.55956622,145.15,145.11,0.7]
[1764818201870,7.62,145.16,145.13,3.99521563]
[1764818202175,0.67,145.15,145.12,4.69521563]
[1764818202649,0.67,145.15,145.12,3.99521563]
[1764818204161,7.55950448,145.15,145.12,3.99521563]
[1764818206050,0.72,145.18,145.13,4.68521563]
[1764818206252,34.44786523,145.19,145.15,3.99521563]
[1764818206657,0.72,145.18,145.15,3.99521563]
[1764818207251,24.11652216,145.19,145.15,4.68521563]
[1764818207459,0.72,145.18,145.15,4.68521563]
[1764818207962,0.72,145.18,145.15,3.99521563]
[1764818208158,7.08765816,145.19,145.16,3.99521563]
[1764818208359,0.2,145.19,145.17,3.99521563]
[1764818208774,0.2,145.19,145.18,4.68521563]
[1764818209660,0.2,145.19,145.18,8.68043126]
[1764818210172,0.2,145.19,145.18,15.56843236]
[1764818210376,0.2,145.19,145.18,20.3209802]
[1764818210584,0.2,145.19,145.18,45.52423014]
[1764818214290,0.2,145.19,145.18,29.21536614]
[1764818214671,0.2,145.19,145.18,38.02531106]
[1764818214876,0.2,145.24,145.21,16.308864]
[1764818215078,0.2,145.24,145.23,2.54859582]
[1764818215458,0.2,145.24,145.23,3.23859582]
[1764818216684,0.2,145.24,145.23,10.12422551]
[1764818217481,0.2,145.24,145.23,2.54859582]
[1764818217656,0.92,145.24,145.22,26.47745982]
[1764818217862,0.92,145.24,145.22,18.85745982]
[1764818219176,0.2,145.24,145.23,2.54859582]
[1764818220374,0.92,145.24,145.21,10.16859582]
[1764818221200,0.72,145.23,145.21,7.62]
[1764818221493,2.54859582,145.22,145.17,2.54859582]
[1764818221865,26.84666728,145.24,145.18,3.23859582]
[1764818222062,0.72,145.23,145.19,2.54859582]
[1764818223067,6.88610384,145.22,145.19,2.54859582]
[1764818223562,7.60610384,145.22,145.19,2.54859582]
[1764818223966,7.60610384,145.22,145.18,10.1262406]
[1764818224188,0.2,145.24,145.21,18.85745982]
[1764818224359,0.2,145.24,145.23,2.54859582]
[1764818224558,0.2,145.24,145.23,18.85745982]
[1764818225784,0.2,145.24,145.23,2.54859582]
[1764818226397,0.2,145.24,145.23,9.43422551]
[1764818226889,0.2,145.24,145.23,10.12422551]
[1764818228295,0.2,145.24,145.23,9.43422551]
[1764818230084,0.2,145.24,145.23,10.12422551]
[1764818230690,0.2,145.24,145.23,26.43308951]
[1764818231098,0.2,145.24,145.23,25.74308951]
[1764818231399,0.2,145.24,145.23,16.308864]
[1764818231775,0.92,145.24,145.23,16.308864]
[1764818231995,27.56672129,145.24,145.18,11.44298176]
[1764818232296,2.54859582,145.2,145.14,2.54859582]
[1764818232499,2.54859582,145.19,145.14,10.16859582]
[1764818232674,2.54859582,145.19,145.14,7.62]
[1764818232875,0.65,145.18,145.14,7.62]
[1764818233990,3.19859582,145.18,145.14,7.62]
[1764818234298,10.08705331,145.18,145.14,7.62]
[1764818234474,0.65,145.17,145.14,7.62]
[1764818234999,3.19859582,145.17,145.14,7.62]
[1764818235298,0.65,145.17,145.14,7.62]
[1764818236183,7.5387196,145.17,145.14,7.62]
[1764818236382,10.08731542,145.17,145.14,7.62]
[1764818236603,0.65,145.16,145.14,7.62]
[1764818236900,0.65,145.16,145.12,17.76938212]
[1764818237310,0.65,145.16,145.12,17.05938212]
[1764818237912,3.19859582,145.16,145.12,7.62]
[1764818238088,6.88942473,145.15,145.12,7.62]
[1764818238412,7.53942473,145.15,145.12,7.62]
[1764818238701,0.65,145.14,145.12,7.62]
[1764818241397,6.88907114,145.16,145.12,7.62]
[1764818241604,0.65,145.15,145.12,7.62]
[1764818242285,7.5395168,145.15,145.12,7.62]
[1764818242490,10.08811262,145.15,145.11,16.308864]
[1764818242695,3.19859582,145.14,145.1,7.62]
[1764818243086,0.65,145.13,145.1,7.62]
[1764818243514,2.54859582,145.12,145.1,7.62]
[1764818244006,3.19859582,145.14,145.1,6.8917333]
[1764818244210,3.19859582,145.14,145.09,25.7496634]
[1764818244414,0.65,145.13,145.09,25.7496634]
[1764818245417,0.65,145.13,145.09,23.20106758]
[1764818246117,3.19859582,145.13,145.09,23.20106758]
[1764818246600,0.65,145.12,145.09,23.20106758]
[1764818248326,0.65,145.12,145.09,16.308864]
[1764818249611,0.65,145.12,145.09,23.20095385]
[1764818256627,0.65,145.12,145.04,11.44298176]
[1764818256628,2.54859582,145.1,145.01,0.1]
[1764818256797,2.54859582,145.06,145.01,10.97859582]
[1764818257111,0.65,145.1,145.01,17.8746391]
[1764818257299,0.65,145.09,145.01,15.32604328]
[1764818257904,0.65,145.09,145.02,0.71]
[1764818258302,0.65,145.09,145.01,17.1646391]
[1764818258501,6.89274882,145.08,145.01,35.11482943]
[1764818258910,0.65,145.09,145.04,16.308864]
[1764818259118,17.22794022,145.12,145.06,2.54859582]
[1764818259119,0.65,145.1,145.06,2.54859582]
[1764818259324,0.65,145.1,145.06,3.24859582]
[1764818259505,0.65,145.1,145.05,10.86859582]
[1764818259830,2.54859582,145.09,145.05,7.62]
[1764818260228,0.72,145.08,145.05,7.62]
[1764818260424,7.61291603,145.08,145.05,7.62]
[1764818260903,0.72,145.07,145.05,7.62]
[1764818261429,0.72,145.07,145.03,14.51512514]
[1764818261828,0.72,145.07,145.03,17.06372096]
[1764818262128,0.72,145.07,145.04,0.7]
[1764818262326,0.72,145.07,145.03,14.51512514]
[1764818262531,6.89369915,145.06,145.03,7.62]
[1764818262910,7.61369915,145.06,145.03,7.62]
[1764818264023,6.89369915,145.06,145.03,7.62]
[1764818264225,0.72,145.05,145.03,7.62]
[1764818264733,9.44229497,145.06,145.03,7.62]
[1764818264906,7.61369915,145.06,145.03,7.62]
[1764818268128,0.72,145.05,145.01,9.54466903]
[1764818268337,0.72,145.05,145.01,10.26859582]
[1764818268514,0.72,145.05,145.01,7.72]
[1764818269334,0.72,145.08,145.03,2.54859582]
[1764818269631,0.72,145.06,145.02,10.87859582]
[1764818269835,0.72,145.06,145.02,17.77384062]
[1764818270135,0.72,145.06,145.03,2.54859582]
[1764818270339,0.72,145.06,145.02,17.06413871]
[1764818270517,0.72,145.06,145.02,19.21867407]
[1764818270920,7.61375133,145.06,145.02,19.21867407]
[1764818271657,7.61375133,145.06,145.02,15.22554289]
[1764818271928,7.61375133,145.06,145.02,19.21867407]
[1764818272514,0.72,145.05,145.02,15.22554289]
[1764818272838,0.72,145.07,145.03,3.99313118]
[1764818273054,0.72,145.07,145.02,19.21867407]
[1764818273730,11.60669237,145.07,145.02,19.21867407]
[1764818274112,0.72,145.06,145.02,19.21867407]
[1764818274734,7.61381458,145.06,145.02,19.21867407]
[1764818275814,7.61381458,145.06,145.03,3.99313118]
[1764818276011,0.72,145.05,145.02,15.22554289]
[1764818276229,6.89322396,145.07,145.02,19.21867407]
[1764818276523,0.72,145.06,145.02,19.21867407]
[1764818276921,0.72,145.06,145.02,18.50867407]
[1764818277121,7.61395631,145.06,145.02,11.61313118]
[1764818277319,3.99313118,145.05,145.01,0.1]
[1764818277643,4.71313118,145.05,145.01,0.1]
[1764818277837,0.72,145.04,145.01,0.1]
[1764818278231,0.72,145.04,145.01,4.80313118]
[1764818278429,0.72,145.04,145.01,4.09313118]
[1764818279239,0.72,145.06,145.02,4.70313118]
[1764818279439,0.72,145.06,145.03,3.99313118]
[1764818279936,6.89336226,145.07,145.03,4.70313118]
[1764818279937,7.61336226,145.07,145.03,4.70313118]
[1764818280342,7.61336226,145.07,145.03,12.32313118]
[1764818280727,6.89285864,145.08,145.05,3.99313118]
[1764818280925,7.61285864,145.08,145.05,3.99313118]
[1764818281840,41.1561135,145.12,145.05,10.88710165]
[1764818282032,0.72,145.11,145.08,3.99313118]
[1764818282434,0.72,145.13,145.09,3.99313118]
[1764818282750,0.72,145.12,145.08,4.70313118]
[1764818283331,0.72,145.12,145.09,3.99313118]
[1764818283636,7.61102087,145.12,145.08,4.70313118]
[1764818284045,6.89102087,145.12,145.08,4.70313118]
[1764818284350,0.72,145.11,145.08,4.70313118]
[1764818284836,0.72,145.11,145.08,3.99313118]
[1764818285033,0.72,145.11,145.07,3.99313118]
[1764818285034,7.61145748,145.11,145.07,3.99313118]
[1764818285342,0.72,145.1,145.06,7.62]
[1764818285553,4.71313118,145.1,145.06,7.62]
[1764818285931,4.71313118,145.09,145.06,7.62]
[1764818286146,3.99313118,145.07,145.02,8.89438594]
[1764818286331,3.99313118,145.07,145.02,3.99313118]
[1764818286532,4.71313118,145.06,145.01,7.72]
[1764818286725,4.71313118,145.06,145.01,11.71313118]
[1764818286925,7.61417442,145.05,145.01,11.71313118]
[1764818287135,0.72,145.05,145.02,4.70313118]
[1764818287328,0.72,145.05,145.01,15.32604215]
[1764818287651,0.72,145.05,145.02,3.99313118]
[1764818288450,0.72,145.05,145.02,11.59871217]
[1764818290136,6.89375591,145.06,145.02,11.59871217]
[1764818290332,7.61375591,145.06,145.03,3.99313118]
[1764818291732,7.61375591,145.06,145.03,4.70313118]
[1764818291935,7.61375591,145.06,145.03,3.99313118]
[1764818292128,0.72,145.05,145.02,10.88871217]
[1764818292440,0.72,145.05,145.02,3.99313118]
[1764818292642,0.72,145.05,145.02,11.5986649]
[1764818292956,0.72,145.05,145.03,3.99313118]
[1764818293257,0.71,145.06,145.03,3.99313118]
[1764818294755,7.60384279,145.06,145.03,3.99313118]
[1764818295459,7.60384279,145.06,145.03,1.51313118]
[1764818297748,0.71,145.1,145.05,3.99313118]
[1764818297950,6.89243107,145.09,145.05,3.99313118]
[1764818298445,0.71,145.08,145.05,3.99313118]
[1764818299051,0.71,145.08,145.04,7.62]
[1764818299052,7.60277744,145.08,145.04,7.62]
[1764818299359,7.60277744,145.08,145.02,18.50859789]
[1764818299360,11.59590862,145.08,145.02,18.50859789]
[1764818299543,0.71,145.07,145.02,18.50859789]
[1764818299743,4.70313118,145.07,145.02,18.50859789]
[1764818299962,0.71,145.07,145.02,19.21859789]
[1764818300138,0.71,145.06,145.03,3.99313118]
[1764818300345,7.60391951,145.06,145.02,7.62]
[1764818300538,7.60391951,145.06,145.02,12.32313118]
[1764818300846,0.71,145.05,145.02,12.32313118]
[1764818301548,6.89338596,145.07,145.03,3.99313118]
[1764818301848,0.71,145.09,145.06,3.99313118]
[1764818302048,0.71,145.09,145.06,11.61313118]
[1764818302251,7.60242005,145.09,145.06,12.32313118]
[1764818302761,7.60242005,145.09,145.06,11.61313118]
[1764818305365,0.71,145.12,145.08,3.99313118]